bitfinex/quotes_BTCUSD_20250219
["timestamp","ask_amount","ask_price","bid_price","bid_amount"]
[1739933068562,0.0004255,95889.0,95888.0,1.52570737]
[1739933068731,0.0004255,95889.0,95888.0,1.52070737]
[1739933069153,0.0014255,95889.0,95888.0,1.52670737]
[1739933069355,0.0004255,95889.0,95888.0,1.52070737]
[1739933069562,0.0004255,95890.0,95889.0,0.023]
[1739933069877,0.0004255,95890.0,95889.0,0.14924272]
[1739933070819,0.01787511,95939.0,95890.0,0.18746207]
[1739933071076,2.190198,95935.0,95898.0,0.08374464]
[1739933071282,2.190198,95935.0,95900.0,0.1262]
[1739933071551,0.02058365,95930.0,95901.0,0.00104254]
[1739933071767,0.15,95928.0,95909.0,0.0831]
[1739933071983,0.15,95926.0,95909.0,0.08414254]
[1739933072184,0.15,95924.0,95909.0,0.08414254]
[1739933072393,0.00768827,95914.0,95911.0,0.1327]
[1739933072599,0.00768827,95914.0,95913.0,0.1327]
[1739933075204,0.00768827,95914.0,95913.0,0.1367]
[1739933077219,0.00768827,95914.0,95913.0,0.4613]
[1739933078278,0.02058365,95930.0,95913.0,0.3516]
[1739933078500,0.00046894,95936.0,95916.0,0.1226]
[1739933078668,0.00046894,95936.0,95920.0,0.023]
[1739933078879,0.00046894,95936.0,95924.0,0.0773]
[1739933079083,0.00046894,95936.0,95926.0,0.0773]
[1739933079510,0.00046894,95936.0,95926.0,0.07834236]
[1739933079710,0.00046894,95936.0,95929.0,0.023]
[1739933079960,0.00046894,95936.0,95931.0,0.023]
[1739933080156,0.00046894,95936.0,95927.0,0.3246]
[1739933080157,0.00046894,95936.0,95935.0,0.023]
[1739933080398,0.00046894,95936.0,95935.0,0.10024224]
[1739933082436,0.00046894,95936.0,95935.0,0.10624224]
[1739933082646,0.00046894,95936.0,95935.0,0.15204224]
[1739933083168,0.00046894,95936.0,95935.0,0.47664224]
[1739933083367,0.00046894,95936.0,95935.0,0.4756]
[1739933084860,0.00046894,95936.0,95935.0,0.4696]
[1739933085284,0.00046894,95936.0,95935.0,0.4766]
[1739933085481,0.00046894,95936.0,95935.0,0.4696]
[1739933085892,0.00046894,95936.0,95935.0,0.4766]
[1739933086098,0.00046894,95936.0,95935.0,0.4696]
[1739933086304,0.00046894,95936.0,95935.0,0.4766]
[1739933088498,0.00046894,95936.0,95935.0,0.4696]
[1739933088842,0.00046894,95936.0,95935.0,0.4766]
[1739933091365,0.00046894,95936.0,95935.0,0.49753148]
[1739933094933,0.00046894,95936.0,95935.0,1.04323148]
[1739933096712,0.00046894,95936.0,95935.0,1.0223]
[1739933101084,0.00046894,95936.0,95935.0,0.4766]
[1739933101941,0.15,95997.0,95935.0,0.4766]
[1739933102195,4.364e-05,95967.0,95937.0,0.023]
[1739933102411,0.15,95965.0,95939.0,0.023]
[1739933102617,0.02058202,95962.0,95939.0,0.023]
[1739933102846,0.15,95960.0,95939.0,0.023]
[1739933103069,0.15,95958.0,95939.0,0.023]
[1739933103287,0.15,95956.0,95939.0,0.023]
[1739933103507,0.15,95954.0,95939.0,0.023]
[1739933103717,0.15,95954.0,95941.0,0.023]
[1739933103718,0.00798166,95949.0,95941.0,0.023]
[1739933104441,0.00798166,95949.0,95942.0,0.00104216]
[1739933104685,0.00798166,95949.0,95941.0,0.023]
[1739933104895,0.00798166,95949.0,95942.0,0.00104216]
[1739933105564,0.00798166,95949.0,95941.0,0.025]
[1739933105779,0.380673,95948.0,95941.0,0.023]
[1739933106236,0.00798166,95949.0,95941.0,0.023]
[1739933106454,0.666087,95948.0,95941.0,0.023]
[1739933106694,0.00798166,95949.0,95942.0,0.002]
[1739933106920,0.434623,95948.0,95943.0,0.3246]
[1739933107402,0.249919,95948.0,95943.0,0.3246]
[1739933107611,0.00798166,95949.0,95943.0,0.3246]
[1739933108451,0.365246,95948.0,95943.0,0.3246]
[1739933109562,0.365246,95948.0,95943.0,0.3266]
[1739933109779,0.365246,95948.0,95943.0,0.3246]
[1739933111308,0.365246,95948.0,95943.0,0.3266]
[1739933116632,0.365246,95948.0,95944.0,0.023]
[1739933116853,0.02070342,95964.0,95943.0,0.3266]
[1739933117075,0.15,95962.0,95944.0,0.023]
[1739933117300,0.15,95960.0,95944.0,0.023]
[1739933117540,0.15,95958.0,95944.0,0.023]
[1739933117732,0.15,95956.0,95944.0,0.023]
[1739933117931,0.496856,95955.0,95944.0,0.023]
[1739933118160,0.234166,95954.0,95944.0,0.023]
[1739933118371,0.461906,95955.0,95944.0,0.023]
[1739933118584,0.410641,95954.0,95944.0,0.023]
[1739933118816,0.200848,95953.0,95946.0,0.023]
[1739933119039,0.02070342,95964.0,95946.0,0.023]
[1739933119251,0.15,95962.0,95946.0,0.023]
[1739933119478,0.15,95960.0,95946.0,0.023]
[1739933119696,0.15,95958.0,95946.0,0.023]
[1739933119916,0.15,95956.0,95946.0,0.023]
[1739933120137,0.465032,95955.0,95946.0,0.024]
[1739933120368,0.298063,95954.0,95946.0,0.023]
[1739933120589,0.597201,95955.0,95946.0,0.023]
[1739933121034,0.34817,95955.0,95946.0,0.023]
[1739933121275,0.545207,95955.0,95946.0,0.023]
[1739933122208,0.545207,95955.0,95948.0,0.023]
[1739933122209,0.364243,95955.0,95948.0,0.023]
[1739933122430,0.41384,95955.0,95948.0,0.023]
[1739933122942,0.181093,95954.0,95948.0,0.023]
[1739933123167,0.308827,95955.0,95948.0,0.023]
[1739933123390,0.0080012,95961.0,95948.0,0.023]
[1739933123596,0.15,95959.0,95948.0,0.023]
[1739933123815,0.15,95957.0,95948.0,0.023]
[1739933124033,0.15,95955.0,95948.0,0.023]
[1739933124301,0.294035,95954.0,95948.0,0.023]
[1739933124671,0.294035,95954.0,95948.0,0.3476]
[1739933130343,0.2944602,95954.0,95948.0,0.3476]
[1739933130596,0.0004252,95954.0,95948.0,0.3476]
[1739933134399,0.0004252,95954.0,95949.0,0.0461]
[1739933139249,0.0004252,95954.0,95950.0,0.023]
[1739933139474,0.0004252,95954.0,95952.0,0.023]
[1739933139716,0.0004252,95954.0,95953.0,0.102]
[1739933141488,0.0004252,95954.0,95953.0,0.4306]
[1739933141694,0.0004252,95954.0,95953.0,0.4727]
[1739933141920,0.0004252,95954.0,95953.0,0.4757]
[1739933142359,0.0004252,95954.0,95953.0,0.4727]
[1739933144026,0.0004252,95954.0,95953.0,0.4767]
[1739933144433,0.0004252,95954.0,95953.0,0.4727]
[1739933144661,0.0004252,95954.0,95953.0,0.4757]
[1739933145067,0.0004252,95954.0,95953.0,0.4727]
[1739933145271,0.0004252,95954.0,95953.0,0.4767]
[1739933145684,0.0004252,95954.0,95953.0,1.0224]
[1739933146102,0.02133035,95991.0,95955.0,0.127]
[1739933146425,0.00787187,95977.0,95959.0,0.1302]
[1739933146580,0.00787187,95977.0,95961.0,0.023]
[1739933146785,0.00787187,95977.0,95965.0,0.023]
[1739933146993,0.00787187,95977.0,95966.0,0.15194185]
[1739933147203,0.02123209,95995.0,95966.0,1.02224185]
[1739933147410,0.01986429,95997.0,95966.0,1.0212]
[1739933148211,0.00785227,95987.0,95966.0,1.0212]
[1739933148425,0.00785227,95987.0,95966.0,0.4525]
[1739933148636,0.0004,95984.0,95966.0,0.007]
[1739933148845,0.0004,95984.0,95937.0,0.5457]
[1739933148846,0.15,95966.0,95938.0,0.3246]
[1739933149071,3.688863,95966.0,95938.0,0.3246]
[1739933149284,3.688863,95966.0,95939.0,0.00104232]
[1739933149285,1.067965,95965.0,95939.0,0.00104232]
[1739933149512,0.00774173,95956.0,95945.0,0.023]
[1739933149720,0.00774173,95956.0,95947.0,0.023]
[1739933149930,0.00774173,95956.0,95948.0,0.0010421]
[1739933151773,0.00774173,95956.0,95949.0,0.023]
[1739933152016,0.00774173,95956.0,95949.0,0.0240421]
[1739933152211,0.00774173,95956.0,95946.0,0.1255]
[1739933152212,0.00774173,95956.0,95950.0,0.0010421]
[1739933152664,0.00774173,95956.0,95951.0,0.0010421]
[1739933153562,0.00774173,95956.0,95948.0,0.00104204]
[1739933153800,0.00774173,95956.0,95952.0,0.00104204]
[1739933154030,0.00774173,95956.0,95949.0,0.002]
[1739933154358,0.00816723,95956.0,95950.0,0.00104204]
[1739933154585,0.00816723,95956.0,95951.0,0.025]
[1739933154811,0.00816723,95956.0,95951.0,0.023]
[1739933155045,0.00816723,95956.0,95952.0,0.00104204]
[1739933155239,0.00816723,95956.0,95953.0,0.023]
[1739933155794,0.00816723,95956.0,95951.0,0.025]
[1739933157040,0.00816723,95956.0,95951.0,0.023]
[1739933157261,0.00816723,95956.0,95953.0,0.023]
[1739933157900,0.00816723,95956.0,95952.0,0.023]
[1739933158131,0.00816723,95956.0,95953.0,0.00104204]
[1739933158558,0.0004255,95956.0,95953.0,0.00104204]
[1739933158986,0.0004255,95956.0,95948.0,0.02404203]
[1739933159208,0.0004255,95956.0,95950.0,0.023]
[1739933159423,0.0004255,95956.0,95952.0,0.023]
[1739933160113,0.0004255,95956.0,95954.0,0.023]
[1739933160529,0.0004255,95956.0,95955.0,0.00104199]
[1739933161153,0.0004255,95956.0,95954.0,0.005]
[1739933161534,0.0004255,95956.0,95952.0,0.023]
[1739933161535,0.0004255,95956.0,95949.0,0.023]
[1739933161902,0.0004255,95956.0,95955.0,0.028]
[1739933162037,0.0004255,95956.0,95955.0,0.02904195]
[1739933163048,0.0004255,95956.0,95955.0,0.02404195]
[1739933163924,0.0004255,95956.0,95955.0,0.03104195]
[1739933164346,0.0004255,95956.0,95955.0,0.10674195]
[1739933165182,0.0004255,95956.0,95955.0,0.15494195]
[1739933167322,0.023,96034.0,95975.0,0.02]
[1739933167504,0.00043664,96009.0,95975.0,0.02]
[1739933167749,0.15,96007.0,95975.0,0.02]
[1739933167978,0.15,96005.0,95975.0,0.02]
[1739933168184,0.15,96003.0,95975.0,0.02]
[1739933168402,0.15,96001.0,95975.0,0.02]
[1739933168664,1.86364,96000.0,95982.0,0.02]
[1739933168861,0.02092208,95988.0,95982.0,0.02]
[1739933169160,0.15,95986.0,95982.0,0.02]
[1739933169305,0.15,95984.0,95982.0,0.02]
[1739933169482,0.734079,95983.0,95982.0,0.02]
[1739933170744,0.39295199,95983.0,95982.0,0.02]
[1739933171227,0.15,95982.0,95981.0,0.02]
[1739933171440,0.560931,95982.0,95981.0,0.02]
[1739933171936,0.40991,95982.0,95981.0,0.02]
[1739933172169,0.38531,95982.0,95981.0,0.02]
[1739933172374,0.00864199,95983.0,95981.0,0.02]
[1739933172600,0.00864199,95983.0,95982.0,0.02]
[1739933173029,0.11786399,95983.0,95982.0,0.02]
[1739933173238,1.92178599,95983.0,95982.0,0.00020072]
[1739933173449,1.93427599,95983.0,95982.0,0.00020072]
[1739933173867,0.15079928,95982.0,95977.0,0.02]
[1739933174080,1.84821128,95982.0,95977.0,0.02]
[1739933174291,0.15,95980.0,95977.0,0.02]
[1739933174496,0.15,95978.0,95977.0,0.02]
[1739933174709,1.454508,95978.0,95977.0,0.02]
[1739933174912,1.423172,95978.0,95977.0,0.02]
[1739933175129,1.002122,95978.0,95977.0,0.02]
[1739933175633,1.00255837,95978.0,95977.0,0.02]
[1739933175858,0.93700837,95978.0,95977.0,0.02]
[1739933176324,0.65988837,95978.0,95977.0,0.02]
[1739933176771,0.00043637,95978.0,95977.0,0.02]
[1739933177452,0.00043637,95978.0,95977.0,0.043]
[1739933178645,0.00043637,95978.0,95977.0,0.12604176]
[1739933180019,0.00043637,95978.0,95977.0,0.13089256]
[1739933182259,0.00043637,95978.0,95977.0,0.17889256]
[1739933182675,0.00043637,95978.0,95977.0,0.17489256]
[1739933182891,0.00043637,95978.0,95977.0,0.17889256]
[1739933186055,0.02126645,96009.0,95998.0,0.02]
[1739933186283,0.326045,96008.0,95998.0,0.02]
[1739933186736,0.00777977,95999.0,95998.0,0.02]
[1739933188027,0.0079106,95999.0,95998.0,0.02]
[1739933188439,0.1147266,95999.0,95998.0,0.02]
[1739933188888,0.0079106,95999.0,95998.0,0.02]
[1739933189122,0.0079106,95999.0,95998.0,0.021]
[1739933192097,0.0079106,95999.0,95998.0,0.044]
[1739933194204,0.008336,95999.0,95998.0,0.044]
[1739933195267,0.008336,95999.0,95998.0,0.043]
[1739933195436,0.008336,95999.0,95998.0,0.045]
[1739933196812,0.008336,95999.0,95998.0,0.047]
[1739933198417,0.00055623,95999.0,95998.0,0.1715416]
[1739933198677,0.00055623,95999.0,95998.0,0.1675416]
[1739933198896,0.00055623,95999.0,95998.0,0.1675]
[1739933199122,0.00055623,95999.0,95998.0,0.1465]
[1739933199399,0.00055623,95999.0,95998.0,0.1685]
[1739933199651,0.00055623,95999.0,95998.0,0.1665]
[1739933200109,0.00055623,95999.0,95998.0,0.1715]
[1739933206275,0.00055623,95999.0,95998.0,0.005]
[1739933207123,0.00055623,95999.0,95998.0,0.0058502]
[1739933208295,0.00055623,95999.0,95998.0,0.0008502]
[1739933208493,0.00055623,95999.0,95998.0,0.0038502]
[1739933208709,0.00055623,95999.0,95994.0,0.02]
[1739933209123,0.00055623,95999.0,95998.0,0.002]
[1739933209988,0.00055623,95999.0,95994.0,0.02]
[1739933210187,0.00055623,95999.0,95998.0,0.001]
[1739933211513,0.00055623,95999.0,95994.0,0.02]
[1739933211833,0.00055623,95999.0,95998.0,0.001]
[1739933212451,0.00055623,95999.0,95994.0,0.02]
[1739933212826,0.00055623,95999.0,95994.0,0.021]
[1739933213060,0.00055623,95999.0,95994.0,0.02]
[1739933215221,0.00055623,95999.0,95998.0,0.001]
[1739933215436,0.00055623,95999.0,95994.0,0.02]
[1739933215836,0.15,95997.0,95994.0,0.021]
[1739933216069,0.15,95997.0,95994.0,0.02]
[1739933216524,0.15,95997.0,95994.0,0.021]
[1739933216757,0.15,95997.0,95994.0,0.001]
[1739933217009,0.15,95995.0,95994.0,0.001]
[1739933217210,0.15,95995.0,95990.0,0.02]
[1739933217211,1.166909,95995.0,95990.0,0.02]
[1739933217376,0.15,95993.0,95990.0,0.02]
[1739933217606,0.15,95991.0,95990.0,0.02]
[1739933217859,1.125779,95991.0,95990.0,0.02]
[1739933218977,1.114019,95991.0,95990.0,0.02]
[1739933219420,0.00055623,95999.0,95994.0,0.02]
[1739933219645,0.15055623,95999.0,95994.0,0.02]
[1739933220728,0.00055623,95999.0,95994.0,0.02]
[1739933221598,0.15,95997.0,95994.0,0.02]
[1739933221801,0.15,95995.0,95994.0,0.001]
[1739933221965,2.105197,95995.0,95994.0,0.001]
[1739933222182,2.152213,95995.0,95994.0,0.001]
[1739933222397,2.110129,95995.0,95994.0,0.001]
[1739933222608,2.110129,95995.0,95991.0,0.0752]
[1739933222803,0.15,95993.0,95991.0,0.0752]
[1739933223132,1.172417,95992.0,95991.0,0.0752]
[1739933223337,0.953409,95992.0,95991.0,0.0752]
[1739933225003,0.953409,95992.0,95991.0,0.0782]
[1739933225220,0.953409,95992.0,95990.0,0.0696502]
[1739933225221,0.15,95991.0,95990.0,0.0496502]
[1739933225431,1.105016,95991.0,95990.0,0.0496502]
[1739933225876,0.16633739,95991.0,95990.0,0.0496502]
[1739933226101,0.79935339,95991.0,95990.0,0.0496502]
[1739933226309,0.89635339,95991.0,95990.0,0.0496502]
[1739933226563,0.89635339,95991.0,95990.0,0.0536502]
[1739933227012,0.88663339,95991.0,95990.0,0.0048502]
[1739933227384,0.31056039,95991.0,95990.0,0.0048502]
[1739933227958,0.31056039,95991.0,95990.0,0.0008502]
[1739933228283,0.15,95990.0,95982.0,0.3246]
[1739933228478,2.499316,95990.0,95982.0,0.3246]
[1739933228679,0.15,95988.0,95982.0,0.3246]
[1739933228882,0.15,95988.0,95981.0,0.045]
[1739933228883,0.15771505,95986.0,95981.0,0.045]
[1739933229112,0.15771505,95986.0,95975.0,0.02]
[1739933229812,0.15771505,95986.0,95982.0,0.001]
[1739933231371,0.15771505,95986.0,95977.0,0.0773508]
[1739933232970,0.15771505,95986.0,95977.0,0.06101273]
[1739933233630,0.09314912,95987.0,95977.0,0.06101273]
[1739933235935,0.01633805,95985.0,95977.0,0.06101273]
[1739933236388,0.00795025,95978.0,95977.0,0.06101273]
[1739933236617,2.16884325,95978.0,95977.0,0.06101273]
[1739933237384,0.00795025,95978.0,95977.0,0.06101273]
[1739933238093,1.14542725,95978.0,95977.0,0.06101273]
[1739933238547,0.15,95977.0,95970.0,0.3246]
[1739933238774,1.67139,95977.0,95970.0,0.3246]
[1739933238995,0.150893,95976.0,95970.0,0.3246]
[1739933239882,0.01633964,95975.0,95970.0,0.3246]
[1739933240098,0.218284,95974.0,95970.0,0.3246]
[1739933240314,0.158389,95974.0,95970.0,0.3246]
[1739933241208,0.124089,95973.0,95970.0,0.3246]
[1739933241423,0.01633964,95975.0,95970.0,0.3246]
[1739933241640,0.160789,95974.0,95970.0,0.3246]
[1739933241872,0.160789,95974.0,95970.0,0.3266]
[1739933242065,0.160789,95974.0,95970.0,0.3246]
[1739933242415,0.160789,95974.0,95970.0,0.3276]
[1739933242644,0.15,95976.0,95970.0,0.3246]
[1739933242850,0.15,95974.0,95970.0,0.3246]
[1739933243053,0.15,95974.0,95970.0,0.3276]
[1739933243279,0.17265132,95974.0,95970.0,0.3276]
[1739933243475,0.15,95972.0,95970.0,0.003]
[1739933243688,0.289638,95971.0,95970.0,0.003]
[1739933243895,0.15,95972.0,95970.0,0.003]
[1739933244330,0.15,95972.0,95971.0,0.02]
[1739933245062,0.02203092,95974.0,95971.0,0.02]
[1739933245446,0.00795025,95978.0,95971.0,0.02]
[1739933245623,0.15,95976.0,95971.0,0.024]
[1739933245869,0.15,95976.0,95970.0,0.0008508]
[1739933245870,0.01633922,95974.0,95973.0,0.02]
[1739933249062,0.01633922,95974.0,95973.0,0.023]
[1739933253325,0.00795025,95978.0,95973.0,0.023]
[1739933254119,0.15,95999.0,95973.0,0.023]
[1739933254319,0.15,95997.0,95975.0,0.02]
[1739933254612,0.15,95995.0,95975.0,0.02]
[1739933254857,0.15,95993.0,95975.0,0.02]
[1739933255114,0.0204375,95985.0,95975.0,0.02]
[1739933255502,0.15,95983.0,95975.0,0.02]
[1739933255639,0.15,95981.0,95975.0,0.02]
[1739933255850,0.15,95979.0,95975.0,0.02]
[1739933258110,0.01633879,95980.0,95975.0,0.021]
[1739933258302,0.15,95978.0,95975.0,0.021]
[1739933258614,0.007889,95976.0,95975.0,0.021]
[1739933259531,0.007889,95976.0,95975.0,0.02]
[1739933260860,0.007889,95976.0,95975.0,0.022]
[1739933261076,0.007889,95976.0,95975.0,0.02]
[1739933261511,0.007889,95976.0,95975.0,0.022]
[1739933266141,0.02422935,95976.0,95975.0,0.022]
[1739933270050,0.67422935,95976.0,95975.0,0.022]
[1739933272381,0.657889,95976.0,95975.0,0.022]
[1739933273661,0.6583144,95976.0,95975.0,0.022]
[1739933275650,0.67465462,95976.0,95975.0,0.022]
[1739933283341,0.6583144,95976.0,95975.0,0.022]
[1739933285184,0.6583144,95976.0,95975.0,0.0228504]
[1739933286263,0.67465438,95976.0,95975.0,0.0228504]
[1739933287516,0.67465438,95976.0,95975.0,0.0208504]
[1739933287943,0.67465438,95976.0,95975.0,0.0228504]
[1739933288511,0.17465438,95976.0,95975.0,0.0228504]
[1739933289750,0.16676538,95976.0,95975.0,0.0933504]
[1739933289982,0.01676538,95976.0,95975.0,0.17449222]
[1739933291131,0.01676538,95976.0,95975.0,0.49909222]
[1739933291337,0.01676538,95976.0,95975.0,0.4960504]
[1739933291555,0.01676538,95976.0,95975.0,1.0417504]
[1739933291771,0.01676538,95976.0,95975.0,1.0467504]
[1739933291991,0.01676538,95976.0,95975.0,1.0417504]
[1739933291992,0.0004254,95976.0,95975.0,1.0417504]
[1739933292461,0.0004254,95976.0,95975.0,1.0467504]
[1739933292666,0.0004254,95976.0,95975.0,1.0417504]
[1739933293779,0.0004254,95979.0,95976.0,0.023]
[1739933294013,0.0004254,95979.0,95978.0,0.043]
[1739933294251,0.0004254,95979.0,95978.0,0.1705]
[1739933294460,0.0004254,95979.0,95978.0,1.04184153]
[1739933294714,0.0004254,95979.0,95978.0,1.0408]
[1739933294931,0.0004252,96018.0,95997.0,0.1683]
[1739933298393,0.00772864,96012.0,95997.0,0.1683]
[1739933298602,0.00772864,96012.0,95997.0,0.1723]
[1739933300132,0.00772864,96012.0,95997.0,1.0426]
[1739933301919,0.04476071,95998.0,95997.0,1.0426]
[1739933303102,0.04476071,95998.0,95997.0,1.0386]
[1739933304419,0.04476071,95998.0,95997.0,1.0436]
[1739933304630,0.04476071,95998.0,95997.0,1.0386]
[1739933304846,0.04476071,95998.0,95997.0,1.0446]
[1739933305866,0.04476071,95998.0,95997.0,1.0386]
[1739933305972,0.04476071,95998.0,95997.0,1.0446]
[1739933310109,0.04518621,95998.0,95997.0,1.0446]
[1739933312269,0.02839975,95998.0,95997.0,1.0446]
[1739933312494,0.0004255,95998.0,95997.0,1.0446]
[1739933315313,0.01675862,95998.0,95997.0,1.0386]
[1739933315737,0.01675862,95998.0,95997.0,1.0456]
[1739933315933,0.01675862,95998.0,95997.0,1.0386]
[1739933316394,0.01675862,95998.0,95997.0,1.0456]
[1739933317996,0.03580183,96013.0,96004.0,0.0793]
[1739933318204,0.00052969,96018.0,96007.0,0.1291]
[1739933318413,0.00052969,96018.0,96010.0,0.023]
[1739933318624,0.00052969,96018.0,96015.0,0.023]
[1739933318830,0.00052969,96018.0,96017.0,0.1034]
[1739933319030,0.00052969,96018.0,96017.0,0.10444125]
[1739933319612,0.0351707,96018.0,96017.0,0.10444125]
[1739933320044,0.05150292,96018.0,96017.0,0.11044125]
[1739933320790,0.05150292,96018.0,96017.0,0.15854125]
[1739933321031,0.05150292,96018.0,96017.0,0.1775]
[1739933322368,0.05150292,96018.0,96017.0,0.1715]
[1739933322574,0.05150292,96018.0,96017.0,0.1785]
[1739933323005,0.05150292,96018.0,96017.0,0.1715]
[1739933323237,0.05150292,96018.0,96017.0,0.1785]
[1739933323407,0.05150292,96018.0,96017.0,0.1715]
[1739933323783,0.05150292,96018.0,96017.0,1.0488]
[1739933324424,0.02,96082.0,96019.0,0.0803]
[1739933324581,0.00012262,96049.0,96020.0,0.87134119]
[1739933324791,0.00012262,96049.0,96021.0,0.8703]
[1739933325014,0.15,96047.0,96022.0,0.00104119]
[1739933325411,0.15,96045.0,96022.0,0.00104119]
[1739933325617,0.00770886,96040.0,96022.0,0.00104119]
[1739933326411,0.00770886,96040.0,96023.0,0.0799]
[1739933326618,0.00761681,96040.0,96024.0,0.0240412]
[1739933327234,0.01633154,96037.0,96024.0,0.0240412]
[1739933329549,0.15,96035.0,96024.0,0.023]
[1739933329777,0.15,96035.0,96026.0,0.023]
[1739933330231,0.15,96035.0,96032.0,0.02]
[1739933330485,0.15,96033.0,96032.0,0.02]
[1739933331446,0.01633154,96037.0,96032.0,0.02]
[1739933331667,0.15,96035.0,96033.0,0.00331454]
[1739933331893,0.564321,96034.0,96033.0,0.00331454]
[1739933333055,0.15,96034.0,96033.0,0.00331454]
[1739933334882,0.15,96034.0,96033.0,0.00431454]
[1739933335824,0.15,96034.0,96033.0,0.32891454]
[1739933336729,0.15,96034.0,96033.0,0.35191454]
[1739933336942,0.01633154,96037.0,96036.0,0.00331454]
[1739933337159,0.0004252,96047.0,96046.0,0.00331454]
[1739933337375,0.0004252,96047.0,96046.0,0.35091454]
[1739933337842,0.01675441,96047.0,96046.0,0.35091454]
[1739933338054,0.01675441,96047.0,96046.0,0.34984069]
[1739933338449,0.01675441,96047.0,96046.0,0.42874069]
[1739933339898,0.01675441,96047.0,96046.0,0.43174069]
[1739933340309,0.01675441,96047.0,96046.0,0.42874069]
[1739933340522,0.01675441,96047.0,96046.0,0.43174069]
[1739933342686,0.01675441,96047.0,96046.0,1.02364069]
[1739933342687,0.0004252,96047.0,96046.0,1.02364069]
[1739933343242,0.0004252,96047.0,96046.0,1.02064069]
[1739933343685,0.0004252,96047.0,96046.0,1.02764069]
[1739933343934,0.0004252,96047.0,96046.0,1.02064069]
[1739933344412,7e-05,96092.0,96088.0,0.00224069]
[1739933344643,0.0204255,96144.0,96088.0,0.34984069]
[1739933344844,0.00013073,96112.0,96091.0,0.02]
[1739933345076,0.00785473,96092.0,96088.0,0.3246]
[1739933345280,0.15,96090.0,96088.0,0.3246]
[1739933345566,2.19321,96089.0,96088.0,0.3246]
[1739933345767,2.031813,96089.0,96088.0,0.25203877]
[1739933345986,2.031813,96089.0,96088.0,0.14872381]
[1739933346123,2.031813,96089.0,96088.0,0.10207591]
[1739933346332,1.658949,96089.0,96088.0,0.10207591]
[1739933346535,1.658949,96089.0,96088.0,0.10107591]
[1739933349505,1.67527338,96089.0,96088.0,0.10107591]
[1739933349720,1.67727338,96089.0,96088.0,0.10107591]
[1739933350157,1.47021338,96089.0,96088.0,0.10107591]
[1739933351623,1.49087046,96089.0,96088.0,0.10107591]
[1739933351835,3.39086746,96089.0,96088.0,0.10107591]
[1739933352083,3.18066946,96089.0,96088.0,0.10107591]
[1739933353138,3.66434508,96089.0,96088.0,0.10107591]
[1739933353511,3.05186108,96089.0,96088.0,0.10107591]
[1739933354220,2.86875008,96089.0,96088.0,0.10107591]
[1739933355275,1.92856608,96089.0,96088.0,0.10107591]
[1739933355474,1.87986208,96089.0,96088.0,0.10107591]
[1739933356148,1.53062208,96089.0,96088.0,0.10107591]
[1739933356349,1.44595356,96089.0,96088.0,0.10107591]
[1739933356868,1.44637876,96089.0,96088.0,0.10107591]
[1739933358475,0.15,96088.0,96067.0,0.3246]
[1739933358687,0.10250365,96087.0,96067.0,0.3046]
[1739933358900,3.804195,96086.0,96067.0,0.3046]
[1739933359104,0.15,96084.0,96067.0,0.3046]
[1739933359312,0.15,96082.0,96067.0,0.3046]
[1739933359531,0.15,96080.0,96067.0,0.3046]
[1739933359747,0.15,96078.0,96067.0,0.3046]
[1739933359949,0.15,96076.0,96067.0,0.3046]
[1739933360152,0.15,96074.0,96067.0,0.3046]
[1739933360357,0.15,96072.0,96067.0,0.3046]
[1739933360587,0.15,96070.0,96067.0,0.30503615]
[1739933360784,0.15,96068.0,96067.0,0.30603615]
[1739933360994,0.15,96068.0,96067.0,0.00143615]
[1739933361207,0.15,96068.0,96067.0,0.00043615]
[1739933361376,0.15,96068.0,96067.0,0.00243615]
[1739933362430,0.65,96068.0,96067.0,0.00243615]
[1739933362633,0.65,96068.0,96067.0,0.00043615]
[1739933363066,0.65,96068.0,96067.0,0.00243615]
[1739933363535,1.794485,96068.0,96067.0,0.00243615]
[1739933363724,4.304195,96068.0,96067.0,0.00243615]
[1739933364344,4.304195,96068.0,96050.0,0.0497]
[1739933364550,0.15,96066.0,96045.0,0.079]
[1739933364758,0.15,96064.0,96045.0,0.079]
[1739933364959,0.15,96062.0,96045.0,0.079]
[1739933365185,0.15,96060.0,96045.0,0.079]
[1739933365303,0.15,96058.0,96045.0,0.079]
[1739933365518,0.15,96056.0,96045.0,0.079]
[1739933365739,0.15,96054.0,96045.0,0.079]
[1739933365995,0.15,96052.0,96045.0,0.079]
[1739933366208,0.15,96050.0,96045.0,0.079]
[1739933366419,0.15,96048.0,96045.0,0.079]
[1739933367032,0.15,96048.0,96047.0,0.1181]
[1739933367438,0.01632903,96051.0,96047.0,0.1181]
[1739933367660,0.15,96049.0,96048.0,0.1452]
[1739933367872,0.15,96049.0,96048.0,0.1652]
[1739933368325,0.15,96049.0,96048.0,0.4698]
[1739933369925,0.15,96049.0,96048.0,0.4718]
[1739933370389,0.15,96049.0,96048.0,0.4698]
[1739933370596,0.15,96049.0,96048.0,0.4728]
[1739933370804,0.15,96049.0,96048.0,0.4698]
[1739933372470,0.15,96049.0,96048.0,0.4728]
[1739933372675,0.36491783,96050.0,96048.0,0.4698]
[1739933372928,0.36491783,96050.0,96049.0,0.0981]
[1739933373806,0.49999983,96050.0,96049.0,0.0981]
[1739933373976,0.00780303,96051.0,96050.0,0.023]
[1739933374378,0.00780303,96051.0,96050.0,0.3276]
[1739933376219,0.02413102,96051.0,96050.0,0.3276]
[1739933376423,0.02413102,96051.0,96050.0,0.3306]
[1739933376652,0.02413102,96051.0,96050.0,0.3476]
[1739933377025,0.01632799,96051.0,96050.0,0.4272]